fUST/lending_fUST_20240103
["ID","MTS","AMOUNT","RATE_DAILY","PERIOD"]
[309933308,1704221441874,-536.62245918,0.00046027,21]
[309933310,1704221441884,-117.70023333,0.00046027,21]
[309933320,1704221441968,-382.29976667,0.00046027,21]
[309933322,1704221441977,-138.70059803,0.00046027,21]
[309933325,1704221441989,-361.29940197,0.00046027,21]
[309933327,1704221441999,-165.83014259,0.00046027,21]
[309933422,1704221443076,-334.16985741,0.00046027,21]
[309933424,1704221443086,-436.88951727,0.00046027,21]
[309938103,1704221634523,1733.56453797,0.00025,2]
[309938104,1704221645300,3081.38114691,0.0002399,2]
[309938106,1704221665818,7882.48696374,0.00025297,2]
[309938107,1704221666107,16238.52779669,0.00025,2]
[309938108,1704221666146,1129.79647998,0.000275,2]
[309938109,1704221667406,998.04436332,0.00025,2]
[309938114,1704222235499,303.31256147,0.00025,2]
[309938118,1704222390085,11547.75439796,0.00025,2]
[309938119,1704222390116,7287.89616389,0.00025,2]
[309938120,1704222396517,545.84721559,0.00025,2]
[309938121,1704222409993,2166.25662052,0.00025,2]
[309938122,1704222410017,4305.1089276,0.00025,2]
[309938123,1704222414518,187.5367593,0.00025,2]
[309938125,1704222444095,-154.82968734,0.00029999,4]
[309938126,1704222444118,-2.73993096,0.0003,2]
[309938127,1704222448092,-979.41586513,0.0003,2]
[309938128,1704222448113,-1737.3479917,0.0003,2]
[309938129,1704222448134,-1000.0,0.00037999,7]
[309938130,1704222448155,-1038.38310806,0.00038,3]
[309938131,1704222448179,-162.85841833,0.00038061,2]
[309938132,1704222448203,-1237.03353581,0.00038546,2]
[309938133,1704222448224,-48303.00692641,0.00040999,4]
[309938134,1704222451105,-3714.04192744,0.00040999,4]
[309938135,1704222451126,-3827.79725373,0.00041,10]
[309938136,1704222451146,-161.57063,0.00041091,2]
[309938137,1704222451166,-204.672001,0.00041394,2]
[309938138,1704222451185,-2407.5208482,0.00041442,15]
[309938139,1704222451204,-370.859425,0.00041492,2]
[309938140,1704222451224,-324.50652,0.00041754,120]
[309938141,1704222451246,-184.71119037,0.00041991,2]
[309938142,1704222451266,-227.780481,0.00042091,30]
[309938143,1704222451286,-227.780481,0.00042091,30]
[309938144,1704222451306,-227.780481,0.00042091,30]
[309938145,1704222451326,-161.57063,0.00042212,2]
[309938146,1704222451346,-204.672001,0.00042925,2]
[309938147,1704222451365,-161.57063,0.00043332,2]
[309938148,1704222451387,-220.30351936,0.00043401,5]
[309938149,1704222451409,-300.0,0.000435,23]
[309938150,1704222451429,-495.31512757,0.00043724,5]
[309938151,1704222451449,-153.32,0.00043835,7]
[309938152,1704222451567,-280.15143303,0.00043927,2]
[309938153,1704222451587,-161.57063,0.00044452,2]
[309938154,1704222451607,-204.672001,0.00044457,2]
[309938155,1704222451627,-7949.17,0.0004479,3]
[309938156,1704222451647,-14262.15338145,0.000448,30]
[309938203,1704222632491,-154.82968734,0.00041423,8]
[309938204,1704222632501,-204.672001,0.0004405,2]
[309938205,1704222632511,-243.37989,0.00044119,120]
[309938206,1704222632521,-200.0,0.00044189,2]
[309938207,1704222632531,-208.570117,0.00044219,120]
[309938209,1704222632541,-751.85260528,0.00044353,7]
[309938212,1704222632554,-248.14739472,0.00044353,7]
[309938214,1704222632564,-1381.73200537,0.00044354,4]
[309938216,1704222632574,-230.004501,0.00044356,2]
[309938218,1704222632583,-1074.36124576,0.00044796,2]
[309938219,1704222632592,-565.88671315,0.00044799,4]
[309938222,1704222632605,-953.00554436,0.00044799,4]
[309938223,1704222632615,-6591.78100281,0.000448,30]
[309938224,1704222632625,-238.0,0.00045349,2]
[309938226,1704222632634,-1500.0,0.000454,3]
[309938228,1704222632644,-161.57063,0.00045573,2]
[309938230,1704222632654,-14488.82040095,0.00045927,2]
[309938231,1704222632663,-24650.8567009,0.00045927,5]
[309938232,1704222632674,-160.0,0.00045981,3]
[309938234,1704222632683,-250.0,0.00045997,10]
[309938235,1704222632692,-127.2770379,0.00045997,60]
[309938236,1704222632799,-76.7229621,0.00045997,60]
[309938237,1704222632809,-337.43736085,0.00046,39]
[309938253,1704222638458,-521.0003647,0.00046,39]
[309938254,1704222638470,-527.12954456,0.00046,39]
[309938261,1704222641531,-614.43272989,0.00046,39]
[309938262,1704222641541,-204.0,0.00046007,60]
[309938263,1704222641551,-1424.62006624,0.0004601,39]
[309938299,1704223094205,4351.19774284,0.0003,120]
[309938312,1704223649104,-154.82968734,0.00038079,5]
[309938313,1704223649127,-1000.0,0.0003808,7]
[309938314,1704223649150,-413.51118662,0.00038081,4]
[309938333,1704223745111,-3369.2031304,0.00034268,4]
[309938334,1704223745139,-705.1558005,0.00034269,4]
[309938335,1704223745162,-1144.73387987,0.00034269,4]
[309938336,1704223745189,-1170.12084859,0.0003427,4]
[309938337,1704223745217,-266.73367739,0.00034271,4]
[309938338,1704223745242,-950.90017439,0.00034271,4]
[309938339,1704223745266,-355.45269779,0.00034272,4]
[309938340,1704223745304,-316.10474592,0.00034272,4]
[309938341,1704223745333,-155.29558342,0.00034273,4]
[309938342,1704223745365,-270.28389043,0.00034519,4]
[309938343,1704223745394,-282.97696278,0.00035,2]
[309938344,1704223750142,-393.0873621,0.00034267,4]
[309938345,1704223750172,-307.11873389,0.00035,2]
[309938346,1704223750199,-3950.55134749,0.00035,4]
[309938347,1704223771108,-166.8848065,0.00035,4]
[309938348,1704223773107,-59.05008075,0.00035,4]
[309938349,1704223773129,-120.14929881,0.00037,4]
[309938431,1704223832405,-150.81901718,0.00035905,30]
[309938433,1704223832415,-150.81901718,0.00036638,7]
[309938435,1704223832425,-34.77323992,0.00037,4]
[309938437,1704223832434,-1247.72309228,0.00037,4]
[309938440,1704223832463,-778.96299314,0.00037,4]
[309938473,1704223838520,-260.29428997,0.00036999,4]
[309938475,1704223838531,-578.58036677,0.00036999,4]
[309938476,1704223838586,-9294.57936218,0.00036999,4]
[309938477,1704223838600,-2281.33951042,0.00037,4]
[309938478,1704223838609,-150.81901718,0.00037385,4]
[309938479,1704223838618,-154.82968734,0.000377,2]
[309938480,1704223838627,-154.81422293,0.00038077,5]
[309938481,1704223838636,-21354.21632061,0.00038079,4]
[309938482,1704223838646,-5306.15657521,0.0003808,4]
[309938483,1704223838655,-955.76287203,0.00038081,4]
[309938484,1704223838665,-1000.0,0.00038081,2]
[309938485,1704223838674,-1737.71362764,0.00038081,4]
[309938486,1704223838683,-5975.66580939,0.00038081,4]
[309938488,1704223838692,-1168.85633629,0.00038081,4]
[309938490,1704223838708,-351.78344729,0.00038081,4]
[309938492,1704223838717,-169.21691741,0.00038081,4]
[309938493,1704223838728,-527.12954456,0.00038081,4]
[309938561,1704223845669,-36.32133908,0.00038081,4]
[309938562,1704223845678,-154.82968734,0.00038081,4]
[309938563,1704223845688,-198.88148319,0.00038097,2]
[309938564,1704223845697,-3966.02992098,0.00038097,2]
[309938565,1704223845706,-198.30149605,0.00038097,2]
[309938566,1704223845716,-150.81901718,0.00038148,2]
[309938567,1704223845725,-161.57063,0.00038152,2]
[309938568,1704223845734,-204.672001,0.00038754,2]
[309938569,1704223845743,-174.449981,0.00038965,2]
[309938570,1704223845752,-377.552521,0.00039125,2]
[309938571,1704223845761,-182.534917,0.00039572,120]
[309938572,1704223845770,-508.47980364,0.0004,10]
[309938573,1704223845779,-274.96302419,0.0004,4]
[309938574,1704223845788,-24457.49,0.00041076,3]
[309938575,1704223845799,-905.92463319,0.00041086,3]
[309938576,1704223845811,-16889.67536681,0.00041086,3]
[309938577,1704223845820,-3842.45757901,0.00041096,15]
[309938597,1704223846118,-1435.48860605,0.00041096,15]
[309938599,1704223846131,-1993.98708372,0.00041096,15]
[309938639,1704223846609,-20381.24,0.00041086,3]
[309938640,1704223846618,-952.6263164,0.00041096,15]
[309938642,1704223846630,-5143.58338723,0.00041096,15]
[309938644,1704223846642,-550.46848075,0.00041096,15]
[309947702,1704224949106,-10654.80886657,0.00034006,2]
[309947703,1704224949130,-154.81422293,0.00034006,5]
[309947704,1704224949155,-6533.08088587,0.00034007,4]
[309947705,1704224949179,-1000.0,0.00034007,7]
[309947706,1704224949201,-3003.87159304,0.00034008,4]
[309947707,1704224949222,-823.29963674,0.00034009,4]
[309947708,1704224949246,-705.1558005,0.0003401,4]
[309947709,1704224949266,-1209.0155047,0.00034011,4]
[309947710,1704224949286,-202.315409,0.00034015,2]
[309947711,1704224949308,-10709.11987844,0.00034416,2]
[309947712,1704224953112,-183.15297591,0.00034005,4]
[309947713,1704224953134,-14190.88012156,0.00034416,2]
[309947714,1704224953154,-164.366515,0.00034494,2]
[309947715,1704224953174,-807.897578,0.00034521,2]
[309947716,1704224953194,-1510.2412559,0.00034793,2]
[309947717,1704224953215,-277.053378,0.00035046,2]
[309947718,1704224953239,-473.93027,0.00035616,120]
[309947719,1704224953260,-807.897578,0.00035798,2]
[309947720,1704224953280,-229.93328303,0.00036,4]
[309947721,1704224953300,-696.34646197,0.00037,4]
[309947722,1704224953322,-351.78344729,0.00037,4]
[309947723,1704224953342,-792.125048,0.00037075,2]
[309947734,1704225032590,-154.81422293,0.00033743,5]
[309947735,1704225032599,-1000.0,0.00036491,7]
[309947736,1704225032609,-1209.0155047,0.00036491,4]
[309947737,1704225032618,-277.053378,0.00036492,2]
[309947738,1704225032627,-4032.09972053,0.00037075,4]
[309947739,1704225032637,-15.77253,0.00037075,2]
[309947740,1704225032646,-8491.65,0.00037484,3]
[309947743,1704225032655,-16193.02,0.00037484,3]
[309947745,1704225032664,-900.01480962,0.00037492,2]
[309947748,1704225032674,-163.75219479,0.00037492,4]
[309947751,1704225032684,-1731.39134117,0.00037492,4]
[309947753,1704225032694,-4861.35011452,0.00037492,4]
[309947756,1704225032703,-539.91275197,0.00037492,4]
[309947759,1704225032711,-192.97178768,0.00037492,4]
[309947761,1704225032721,-309.7831518,0.00037492,4]
[309947764,1704225032730,-375.24715045,0.00037492,4]
[309947767,1704225032740,-230.48594544,0.00037492,4]
[309947769,1704225032749,-156.4879061,0.00037493,4]
[309947771,1704225032758,-7720.95449626,0.00037493,2]
[309947772,1704225032767,-45924.15924217,0.00037494,4]
[309947779,1704225038790,-6029.07440036,0.00037494,4]
[309947780,1704225038806,-3941.59847985,0.00037494,4]
[309947781,1704225038818,-521.0003647,0.00037494,4]
[309947782,1704225038833,-527.12954456,0.00037494,4]
[309947787,1704225044819,-1209.0155047,0.00037493,4]
[309947788,1704225044829,-8568.01829993,0.00037494,4]
[309947836,1704225048947,-1071.32816467,0.00037075,4]
[309947837,1704225048957,-21124.68406306,0.00037494,4]
[309947838,1704225048966,-250.0,0.00037857,15]
[309947839,1704225048975,-340.32094989,0.00038122,2]
[309947840,1704225048985,-807.897578,0.00038352,2]
[309947841,1704225048995,-902.11003814,0.00038546,2]
[309947842,1704225049004,-354.36388586,0.00038546,2]
[309947843,1704225049014,-460.38922601,0.00038986,2]
[309947844,1704225049023,-164.366515,0.00039196,2]
[309947845,1704225049032,-807.897578,0.0003963,2]
[309947846,1704225049041,-8066.93265803,0.0004,120]
[309947847,1704225049051,-11919.9371465,0.00041086,3]
[309947869,1704226025104,-619.96548929,0.00034877,7]
[309947870,1704226041104,-154.81422293,0.00034876,5]
[309947871,1704226041127,-380.03451071,0.00034877,7]
[309947872,1704226041152,-342.43508635,0.00034878,2]
[309947873,1704226041175,-1050.30153828,0.00034879,3]
[309947874,1704226041198,-154.81422293,0.00034882,2]
[309947875,1704226041220,-1588.53504248,0.00035,2]
[309947895,1704226147109,-150.0,0.00033,2]
[309947896,1704226147130,-1875.80152335,0.00035,2]
[309947897,1704226153146,-6661.42513785,0.00035,2]
[309947898,1704226153172,-4308.02559584,0.00035,4]
[309947899,1704226153197,-150.0,0.00035,15]
[309947900,1704226153221,-355.447702,0.0003627,120]
[309947901,1704226153265,-233.10321046,0.00036342,2]
[309947902,1704226153297,-3284.94264231,0.00036443,2]
[309947903,1704226153325,-787.8567397,0.00036445,4]
[309947904,1704226153353,-324.8506638,0.00036446,2]
[309947905,1704226153383,-171.9339104,0.0003672,2]
[309947906,1704226153406,-200.0,0.00036855,2]
[309947907,1704226153433,-8795.05445146,0.00037237,2]
[309947908,1704226156119,-4111.23655133,0.00037237,2]
[309947953,1704226231822,-418.51762617,0.00037237,4]
[309947955,1704226231834,-2905.86717269,0.00037237,4]
[309947957,1704226231846,-983.64079698,0.00037237,4]
[309947958,1704226231856,-439.565,0.00037494,4]
[309947960,1704226231865,-400.710759,0.00037794,2]
[309947962,1704226231876,-154.81422293,0.00038121,5]
[309947964,1704226231885,-379.51290292,0.00038122,2]
[309947965,1704226231896,-208.73841689,0.00038134,2]
[309947966,1704226231905,-250.0,0.00038499,30]
[309947967,1704226231915,-846.72949128,0.00041096,15]
[309947968,1704226231929,-1568.14064086,0.00041096,15]
[309947969,1704226231943,-439.565,0.00041096,15]
[309947992,1704226238229,-1000.0,0.00041095,7]
[309947993,1704226238239,-391.3543844,0.00041095,2]
[309947994,1704226238248,-78.69875219,0.00041096,15]
[309947995,1704226238259,-861.66300553,0.00041096,15]
[309947996,1704226238271,-521.0003647,0.00041096,15]
[309947997,1704226238283,-527.12954456,0.00041096,15]
[309948025,1704226245853,-1000.0,0.00041096,15]
[309948060,1704227350113,-1050.30153828,0.0003699,4]
[309948061,1704227350135,-1000.0,0.00036991,7]
[309948062,1704227350160,-590.09569667,0.00036991,2]
[309948063,1704227350181,-154.82968734,0.00036992,5]
[309948064,1704227350203,-154.82968734,0.00036993,4]
[309948065,1704227350226,-342.43508635,0.00036993,2]
[309948066,1704227350250,-3494.86934315,0.00036993,4]
[309948074,1704227371133,-681.61689159,0.00036993,4]
[309948075,1704227371155,-500.0,0.00037,2]
[309948076,1704227371175,-161.57063,0.00037098,2]
[309948077,1704227371196,-329.00262928,0.00037204,120]
[309948120,1704227431991,-18.70977772,0.00037204,120]
[309948122,1704227432001,-500.0,0.00037373,2]
[309948124,1704227432011,-185.429713,0.00037434,2]
[309948126,1704227432020,-204.672002,0.00037496,2]
[309948127,1704227432031,-500.0,0.00037737,2]
[309948129,1704227432042,-184.71119037,0.00037815,2]
[309948131,1704227432052,-1885.9953777,0.00037832,2]
[309948133,1704227432062,-150.83408251,0.00037876,4]
[309948135,1704227432071,-500.0,0.00038,2]
[309948137,1704227432081,-676.24587182,0.00038373,2]
[309948139,1704227432090,-220.30351936,0.00038492,2]
[309948142,1704227432100,-150.83408251,0.00038649,2]
[309948144,1704227432110,-161.57063,0.00038784,2]
[309948147,1704227432120,-309.95092021,0.00038996,2]
[309948150,1704227432129,-204.672002,0.00040271,2]
[309948153,1704227432138,-161.57063,0.0004047,2]
[309948156,1704227432147,-25271.6280414,0.00041096,15]
[309948159,1704227432157,-1000.0,0.00041096,60]
[309948162,1704227432166,-566.19194991,0.00041096,4]
[309948165,1704227432176,-2998.75034603,0.00041096,4]
[309948168,1704227432185,-2078.15203413,0.00041096,4]
[309948170,1704227432195,-4430.42111367,0.00041421,4]
[309948173,1704227432204,-154.82968734,0.00041422,8]
[309948175,1704227432214,-155.45835914,0.00041423,4]
[309948177,1704227432224,-174.893691,0.00042091,30]
[309948179,1704227432234,-161.57063,0.00042155,2]
[309948181,1704227432245,-170.83536,0.00042247,30]
[309948183,1704227432254,-391.3543844,0.00042942,2]
[309948185,1704227432264,-150.83408251,0.00042943,2]
[309948186,1704227432275,-250.21564279,0.00042943,2]
[309948188,1704227432285,-170.83536,0.00042951,30]
[309948190,1704227432294,-1048.12990926,0.00043,7]
[309948191,1704227432306,-204.672002,0.00043045,2]
[309948193,1704227432318,-1500.0,0.000434,3]
[309948195,1704227432328,-347.712407,0.00043404,120]
[309948197,1704227432338,-170.83536,0.00043655,30]
[309948198,1704227432349,-301.66816502,0.00043665,4]
[309948200,1704227432359,-1000.0,0.00043691,14]
[309948202,1704227432370,-495.31512757,0.00043724,5]
[309948203,1704227432380,-153.32,0.00043835,7]
[309948204,1704227432391,-309.95092021,0.00043996,2]
[309948206,1704227432401,-34.85086581,0.00044359,30]
[309948208,1704227432415,-135.98449419,0.00044359,30]
[309948210,1704227432433,-603.33633004,0.00044398,7]
[309948212,1704227432449,-1500.0,0.000444,3]
[309948214,1704227432459,-238.0,0.00044756,2]
[309948215,1704227432470,-268.59031146,0.00044796,2]
[309948217,1704227432480,-1002.03222599,0.000449,31]
[309948219,1704227432491,-7213.4552676,0.00044999,120]
[309948220,1704227432502,-3000.0,0.00045,21]
[309948222,1704227432512,-166.81042853,0.00045145,4]
[309948224,1704227432523,-200.0,0.00045204,30]
[309948225,1704227432533,-200.0,0.00045204,30]
[309948226,1704227432544,-1500.0,0.000454,3]
[309948227,1704227432555,-1206.67266007,0.00045522,30]
[309948228,1704227432567,-12606.78,0.00045768,3]
[309948229,1704227432578,-51490.15330526,0.00045777,4]
[309948306,1704227438151,-154.82968734,0.00038648,5]
[309948308,1704227438160,-10505.65,0.00045767,3]
[309948310,1704227438170,-2846.86248615,0.00045777,4]
[309948313,1704227438182,-2226.87699448,0.00045777,4]
[309948316,1704227438206,-521.0003647,0.00045777,4]
[309948319,1704227438219,-527.12954456,0.00045777,4]
[309948641,1704227441284,-1000.0,0.00045776,7]
[309948643,1704227441294,-1099.86245569,0.00045777,4]
[309948645,1704227441306,-2000.94431171,0.00045777,4]
[309948788,1704227442998,-1624.94051696,0.00045777,4]
[309950549,1704227772506,8000.0,0.000272,2]
[309950557,1704228444111,-154.82968734,0.00038155,5]
[309950558,1704228444133,-12.05511916,0.00038156,7]
[309950614,1704228632149,-154.82968734,0.00038164,5]
[309950615,1704228632159,-591.66198239,0.00038165,7]
[309950663,1704228638357,-408.33801761,0.00038165,7]
[309950665,1704228638367,-220.47975403,0.00038166,2]
[309950667,1704228638376,-151.87023679,0.00038546,2]
[309950668,1704228638386,-303.0512402,0.00041421,30]
[309950670,1704228638396,-150.0,0.00043677,2]
[309950672,1704228638404,-185.429713,0.00044113,2]
[309950674,1704228638413,-173.856203,0.00044204,120]
[309950675,1704228638423,-238.0,0.00044593,2]
[309950677,1704228638432,-4269.7201976,0.000449,120]
[309950678,1704228638443,-1420.25999998,0.000449,120]
[309950680,1704228638455,-521.0003647,0.000449,120]
[309950681,1704228638471,-527.12954456,0.000449,120]
[309950711,1704228641388,-475.34516076,0.000449,120]
[309950712,1704228641397,-300.0,0.00045,24]
[309950713,1704228641406,-3387.78283413,0.00045677,2]
[309950714,1704228641415,-1000.0,0.00045779,7]
[309950715,1704228641425,-155.28182379,0.00045795,4]
[309950716,1704228641434,-619.21666861,0.00045797,4]
[309950717,1704228641443,-662.37351271,0.00045838,7]
[309950718,1704228641455,-337.62648729,0.00045838,7]
[309950719,1704228641466,-1000.0,0.00045868,7]
[309950720,1704228641475,-419.16107855,0.0004587,7]
[309951003,1704228646230,-580.83892145,0.0004587,7]
[309951004,1704228646239,-610.21634942,0.00045881,2]
[309951005,1704228646248,-523.82508712,0.00045893,2]
[309951006,1704228646261,-86.39126226,0.00045893,2]
[309951008,1704228646271,-1061.46831474,0.000459,39]
[309952503,1704228869641,8988.02441895,0.00025,2]
[309952523,1704229745109,-154.84515485,0.00029976,4]
[309952524,1704229745131,-154.84515485,0.00029977,2]
[309952525,1704229745154,-1357.14061355,0.00029986,2]
[309952526,1704229751109,-3505.33816008,0.00029986,2]
[309952527,1704229751132,-1012.82174531,0.00029987,2]
[309952528,1704229751156,-739.06665306,0.0003,2]
[309952529,1704229751178,-955.66581774,0.00035999,7]
[309952596,1704229833778,-154.84515485,0.00041418,8]
[309952597,1704229833788,-262.78089489,0.00041419,4]
[309952598,1704229833798,-175.69359689,0.0004142,7]
[309952599,1704229833810,-824.30640311,0.0004142,7]
[309952600,1704229833821,-173.856203,0.00041679,120]
[309952601,1704229833832,-150.84915085,0.00042604,2]
[309952603,1704229833843,-154.84515485,0.00043769,4]
[309952605,1704229833854,-150.0,0.0004377,2]
[309952607,1704229833865,-238.0,0.00044703,2]
[309952609,1704229833874,-6591.78100281,0.000448,30]
[309952611,1704229833884,-4318.60746561,0.000449,120]
[309952613,1704229833894,-150.0,0.00045,90]
[309952615,1704229833904,-2525.79,0.000456,4]
[309952617,1704229833914,-2000.0,0.000459,39]
[309952619,1704229833931,-2000.0,0.0004591,39]
[309952622,1704229833946,-16016.12,0.00045916,3]
[309952624,1704229833961,-13346.77,0.00045916,3]
[309952626,1704229833976,-11122.3,0.00045916,3]
[309952627,1704229833990,-2000.0,0.0004592,39]
[309952628,1704229834001,-366.12980966,0.00045923,2]
[309952629,1704229834014,-366.12980962,0.00045924,2]
[309952630,1704229834028,-14488.82040095,0.00045924,2]
[309952631,1704229834042,-366.12980962,0.00045925,2]
[309952632,1704229834055,-366.12980962,0.00045926,2]
[309952633,1704229834069,-14118.57729317,0.00045926,4]
[309952679,1704229838696,-54224.31863683,0.00045926,4]
[309952682,1704229838710,-366.12980962,0.00045927,2]
[309952684,1704229838721,-24650.8567009,0.00045927,5]
[309952686,1704229838731,-3525.936328,0.0004593,39]
[309952688,1704229838744,-160.0,0.00045981,3]
[309952691,1704229838756,-1000.0,0.00045983,7]
[309952693,1704229838768,-151.0,0.00045985,7]
[309952695,1704229838781,-150.0,0.00045997,7]
[309952697,1704229838793,-176.0,0.00045997,60]
[309952700,1704229838804,-2869.768289,0.00046,39]
[309952702,1704229838817,-528.68834392,0.00046,15]
[309952704,1704229838830,-150.0,0.00046007,7]
[309952706,1704229838844,-162.0,0.00046007,7]
[309952708,1704229838854,-176.0,0.00046007,60]
[309952710,1704229838865,-389.96835489,0.00046013,7]
[309952712,1704229838875,-2009.51611107,0.00046015,2]
[309952715,1704229838889,-151.0,0.00046017,7]
[309952717,1704229838901,-151.0,0.00046017,7]
[309952719,1704229838912,-150.0,0.00046017,7]
[309952721,1704229838924,-199.0,0.00046017,60]
[309952724,1704229838936,-150.0,0.00046017,7]
[309952726,1704229838947,-176.0,0.00046017,60]
[309952728,1704229838959,-293.73363054,0.00046023,4]
[309952730,1704229838974,-185.5969086,0.00046023,2]
[309952732,1704229838986,-159.63706552,0.00046023,4]
[309952734,1704229838998,-2178.65217296,0.00046023,2]
[309952735,1704229839011,-3347.19201091,0.00046023,4]
[309952737,1704229839024,-212.45517604,0.00046023,4]
[309952738,1704229839036,-231.49777334,0.00046023,4]
[309952739,1704229839050,-173.29834181,0.00046023,4]
[309952740,1704229839061,-466.78302293,0.00046023,4]
[309952741,1704229839073,-1003.73562959,0.00046023,4]
[309952742,1704229839084,-384.86759273,0.00046023,4]
[309952743,1704229839096,-154.82968734,0.00046023,4]
[309952744,1704229839106,-166.8848065,0.00046023,4]
[309952745,1704229839117,-720.01184769,0.00046023,2]
[309952746,1704229839128,-162.44234547,0.00046023,4]
[309952747,1704229839140,-42529.26427004,0.00046023,2]
[309952748,1704229839153,-156.4879061,0.00046023,4]
[309952749,1704229839164,-7720.95449626,0.00046023,2]
[309952750,1704229839176,-1731.39134117,0.00046023,4]
[309952751,1704229839189,-192.97178768,0.00046023,4]
[309952752,1704229839201,-309.7831518,0.00046023,4]
[309952753,1704229839212,-375.24715045,0.00046023,4]
[309952754,1704229839222,-951.87688525,0.00046023,4]
[309952755,1704229839232,-151.0,0.00046023,7]
[309952756,1704229839243,-151.0,0.00046023,7]
[309952757,1704229839253,-155.54479063,0.00046024,4]
[309952758,1704229839264,-3537.57585844,0.00046024,2]
[309952759,1704229839275,-631.32723953,0.00046024,2]
[309952760,1704229839287,-155.01539012,0.00046024,4]
[309952761,1704229839298,-781.50075545,0.00046024,6]
[309952762,1704229839310,-250.0,0.00046024,10]
[309952763,1704229839322,-151.0,0.00046024,7]
[309952764,1704229839335,-151.0,0.00046024,7]
[309952765,1704229839348,-151.0,0.00046025,7]
[309952766,1704229839360,-151.0,0.00046025,7]
[309952767,1704229839370,-151.0,0.00046025,7]
[309952768,1704229839381,-151.0,0.00046025,7]
[309952769,1704229839392,-151.0,0.00046025,7]
[309952770,1704229839403,-151.0,0.00046025,7]
[309952771,1704229839415,-218.3278,0.00046025,7]
[309952772,1704229839427,-2802.81688075,0.00046025,4]
[309952773,1704229839438,-455.8065565,0.00046025,4]
[309952774,1704229839450,-154.84515385,0.00046025,4]
[309952775,1704229839461,-3000.0,0.00046025,2]
[309952776,1704229839472,-287.21277325,0.00046025,4]
[309952777,1704229839482,-155.06147736,0.00046025,4]
[309952778,1704229839493,-244.17060397,0.00046025,4]
[309952779,1704229839506,-364.55358832,0.00046025,4]
[309952780,1704229839517,-311.27971188,0.00046025,4]
[309952781,1704229839530,-4810.69086572,0.00046025,4]
[309952782,1704229839541,-1094.59579196,0.00046025,4]
[309952783,1704229839552,-644.9503419,0.00046025,4]
[309952784,1704229839656,-1192.95254363,0.00046025,4]
[309952785,1704229839677,-1779.19975854,0.00046025,5]
[309952786,1704229839686,-155.364495,0.00046025,2]
[309952787,1704229839696,-204.50356762,0.00046025,4]
[309952788,1704229839705,-877.13861745,0.00046025,4]
[309952789,1704229839714,-168.85531125,0.00046025,4]
[309952790,1704229839723,-441.67781575,0.00046025,4]
[309952791,1704229839733,-155.01075224,0.00046025,4]
[309952792,1704229839742,-242.79110021,0.00046025,4]
[309952793,1704229839751,-154.97130112,0.00046025,4]
[309952794,1704229839760,-156.04354129,0.00046025,4]
[309952795,1704229839769,-266.24181002,0.00046025,4]
[309952796,1704229839778,-213.65969948,0.00046025,4]
[309952797,1704229839788,-310.21740501,0.00046025,4]
[309952798,1704229839797,-155.47339623,0.00046025,4]
[309952799,1704229839807,-283.82704819,0.00046025,4]
[309952800,1704229839817,-223.62862816,0.00046025,4]
[309952801,1704229839827,-1774.53688728,0.00046025,4]
[309952802,1704229839836,-231.36580499,0.00046025,4]
[309952803,1704229839847,-19707.35166662,0.00046025,4]
[309952804,1704229839856,-867.62948429,0.00046025,4]
[309952805,1704229839866,-768.46288311,0.00046025,30]
[309952806,1704229839875,-2555.45976445,0.00046025,4]
[309952807,1704229839884,-1732.92767361,0.00046025,4]
[309952808,1704229839894,-154.92253873,0.00046025,2]
[309952809,1704229839903,-246.26509339,0.00046025,4]
[309952810,1704229839912,-2111.39829087,0.00046025,4]
[309952811,1704229839922,-155.25421925,0.00046025,7]
[309952812,1704229839931,-446.72704991,0.00046025,4]
[309952813,1704229839941,-230.84808073,0.00046025,4]
[309952814,1704229839950,-155.38608327,0.00046025,4]
[309952815,1704229839959,-639.5302461,0.00046025,4]
[309952816,1704229839968,-157.21239275,0.00046025,10]
[309952817,1704229839977,-1146.73360675,0.00046025,2]
[309952818,1704229839986,-4030.2694805,0.00046025,4]
[309952819,1704229839995,-444.12403931,0.00046025,4]